bitfinex-derivatives/quotes_SOLF0:USTF0_20241103
["timestamp","ask_amount","ask_price","bid_price","bid_amount"]
[1730651989942,1.0,160.02,159.93,10.51213855]
[1730651990144,65.03470828,160.04,159.93,10.51213855]
[1730651990944,3.1259,160.01,159.93,10.51213855]
[1730651991344,65.03470828,160.04,159.93,10.51213855]
[1730651991544,3.1257,160.02,159.93,10.51213855]
[1730651992050,3.1257,160.02,159.98,3.1263]
[1730651992244,3.1272,159.94,159.91,1.3263]
[1730651992438,13.64882616,160.03,159.91,1.3263]
[1730651992637,5.0795,160.02,159.91,1.3263]
[1730651992833,3.1269,159.96,159.92,3.1275]
[1730651993450,3.1269,159.96,159.93,3.1273]
[1730651994447,5.0795,160.02,159.91,1.3263]
[1730651994650,5.0795,160.02,159.94,3.1272]
[1730651995645,3.1268,159.97,159.94,3.1272]
[1730652001450,3.78,159.97,159.86,10.51213855]
[1730652001650,2.6655,159.96,159.86,10.51213855]
[1730652001845,2.6655,159.96,159.93,3.1273]
[1730652002246,3.78,159.97,159.93,3.1273]
[1730652002855,3.78,159.97,159.86,10.51213855]
[1730652003550,3.1272,159.95,159.92,3.1276]
[1730652008853,3.1274,159.94,159.91,3.1277]
[1730652009849,3.1274,159.94,159.92,3.1276]
[1730652010252,3.1271,159.95,159.92,3.1276]
[1730652011755,3.78,159.97,159.89,3.1281]
[1730652011949,1.4002,159.94,159.89,3.1281]
[1730652012358,3.1277,159.92,159.89,3.1281]
[1730652013748,1.4002,159.94,159.86,3.1286]
[1730652013949,5.0606,159.93,159.86,3.1286]
[1730652014651,5.0606,159.93,159.81,5.1927]
[1730652014857,3.1281,159.9,159.81,5.1927]
[1730652015253,3.1281,159.9,159.82,1.4142]
[1730652016462,3.1281,159.9,159.86,3.1286]
[1730652016663,3.1281,159.9,159.82,1.4142]
[1730652017265,3.1281,159.9,159.87,3.1286]
[1730652019066,5.0606,159.93,159.82,1.4142]
[1730652019267,3.1281,159.9,159.86,3.1286]
[1730652020172,3.128,159.91,159.88,3.1283]
[1730652020379,1.2806,159.93,159.83,10.51213855]
[1730652020664,1.4002,159.94,159.86,10.51213855]
[1730652021561,3.78,159.96,159.86,14.29213855]
[1730652021866,3.126,160.01,159.92,10.51213855]
[1730652022073,3.126,160.01,159.97,6.7243238]
[1730652022958,3.126,160.01,159.97,9.8509238]
[1730652024067,3.126,160.01,159.97,3.1266]
[1730652025460,3.1258,160.02,159.98,3.1263]
[1730652025664,61.23470828,160.04,159.97,10.50680472]
[1730652025859,6.4253,160.07,159.99,10.50680472]
[1730652026168,5.1037,160.07,159.99,10.50680472]
[1730652026461,5.1037,160.07,160.0,1.3199]
[1730652026665,46.3552,160.11,160.03,10.50680472]
[1730652026666,5.1152,160.11,160.03,10.50680472]
[1730652026898,3.1243,160.1,160.06,3.1248]
[1730652027470,3.1244,160.09,160.03,10.50680472]
[1730652028274,3.1244,160.09,160.05,3.125]
[1730652030268,3.1247,160.07,160.03,13.63220472]
[1730652030473,5.1152,160.11,160.01,1.2828]
[1730652030871,5.1152,160.11,160.02,10.50680472]
[1730652031262,3.1245,160.08,160.04,3.1252]
[1730652031470,5.1152,160.11,160.02,10.50680472]
[1730652032090,5.1152,160.11,159.96,10.50680472]
[1730652032765,3.1252,160.05,160.01,3.1257]
[1730652034773,5.1152,160.11,159.96,10.50680472]
[1730652035083,5.1152,160.11,160.03,3.1254]
[1730652035271,5.1152,160.11,159.99,10.50680472]
[1730652035472,3.1251,160.05,160.02,3.1256]
[1730652035690,5.1152,160.11,159.99,10.50680472]
[1730652035980,3.1245,160.08,160.04,3.1252]
[1730652036770,3.1262,160.0,159.96,10.50680472]
[1730652036980,3.1262,160.0,159.86,51.2973]
[1730652036981,22.59,160.06,159.93,10.50680472]
[1730652037171,2.8057,160.05,159.93,10.50680472]
[1730652037372,3.1264,159.99,159.95,3.1269]
[1730652037875,1.3257,160.04,159.95,3.1269]
[1730652037876,3.1265,159.98,159.95,3.1269]
[1730652038269,1.3257,160.04,159.95,3.1269]
[1730652038471,3.1263,159.99,159.95,3.1269]
[1730652039773,3.1263,159.99,159.93,10.50680472]
[1730652040083,3.1261,160.0,159.93,10.50680472]
[1730652040669,3.1261,160.0,159.97,3.1266]
[1730652044582,3.78,160.03,159.96,3.1268]
[1730652044785,3.1266,159.98,159.92,1.337]
[1730652046295,3.78,160.03,159.96,3.1266]
[1730652046296,3.1262,160.0,159.96,3.1266]
[1730652046597,3.78,160.03,159.92,1.337]
[1730652046990,3.126,160.0,159.96,3.1267]
[1730652047191,3.78,160.03,159.96,3.1267]
[1730652047791,3.1259,160.01,159.98,3.1264]
[1730652047997,5.1057,160.04,159.93,10.50680472]
[1730652048201,5.1057,160.04,159.94,1.2823]
[1730652048497,5.1057,160.04,159.98,3.1263]
[1730652049302,3.126,160.01,159.98,3.1263]
[1730652050195,3.1265,159.98,159.95,3.127]
[1730652050398,3.1265,159.98,159.92,1.337]
[1730652051305,1.3257,160.04,159.93,10.50680472]
[1730652051497,1.418,160.05,160.0,3.1259]
[1730652051804,3.1256,160.03,160.0,3.1259]
[1730652052210,3.1256,160.03,159.93,10.50680472]
[1730652052211,1.418,160.05,159.99,3.1262]
[1730652053307,1.418,160.05,159.97,10.50680472]
[1730652053513,1.3006,160.08,159.99,10.50680472]
[1730652053711,3.1247,160.07,159.99,10.50680472]
[1730652053924,3.1247,160.07,160.03,3.1253]
[1730652054407,1.3006,160.08,160.03,3.1253]
[1730652054408,3.1249,160.06,160.03,3.1253]
[1730652054606,29.31680472,160.18,160.03,10.50680472]
[1730652054803,1.3746,160.16,160.06,10.50680472]
[1730652055006,5.1546,160.16,160.06,10.50680472]
[1730652055207,3.1235,160.13,160.06,10.50680472]
[1730652055414,5.1546,160.16,160.06,10.50680472]
[1730652056910,3.1241,160.11,160.07,3.1247]
[1730652057308,3.1241,160.11,160.06,10.50680472]
[1730652057910,5.1546,160.16,160.06,10.50680472]
[1730652058300,3.124,160.11,160.07,3.1246]
[1730652058608,5.1546,160.16,160.07,3.1246]
[1730652059415,5.1546,160.16,160.05,3.1249]
[1730652059615,5.1546,160.16,160.03,10.50680472]
[1730652059808,3.1237,160.13,160.03,10.50680472]
[1730652060010,5.1546,160.16,160.05,3.1249]
[1730652060209,10.50680472,160.15,160.02,1.3965]
[1730652060409,3.125,160.06,160.02,1.3965]
[1730652060617,3.125,160.06,160.02,3.1256]
[1730652060805,3.78,160.1,160.0,10.50680472]
[1730652061006,2.7309,160.09,159.99,3.1262]
[1730652061609,3.1257,160.02,159.99,3.1262]
[1730652062009,3.1255,160.03,159.99,3.1262]
[1730652063213,3.1245,160.08,160.04,3.1251]
[1730652063408,1.3121,160.11,160.0,10.50680472]
[1730652063700,3.1245,160.08,160.04,3.1251]
[1730652063910,3.1245,160.08,160.0,10.50680472]
[1730652064312,3.1245,160.08,160.04,3.1251]
[1730652064518,1.3121,160.11,160.0,10.50680472]
[1730652064726,1.3121,160.11,160.03,10.50680472]
[1730652064914,1.3121,160.11,160.06,3.1247]
[1730652065119,3.1242,160.1,160.06,3.1247]
[1730652065608,3.1243,160.09,160.06,3.1247]
[1730652066022,5.1164,160.13,160.03,10.50680472]
[1730652066519,3.78,160.13,160.07,3.1246]
[1730652066714,3.1236,160.13,160.05,10.50680472]
[1730652066912,3.1236,160.13,160.06,1.2924]
[1730652067218,3.1233,160.14,160.06,1.2924]
[1730652067422,5.1862,160.18,160.08,10.50680472]
[1730652067815,64.29412075,160.19,160.11,10.50680472]
[1730652068024,61.17162075,160.19,160.11,10.50680472]
[1730652068626,3.1226,160.18,160.14,3.1232]
[1730652069330,3.1231,160.16,160.12,3.1236]
[1730652069526,5.1521,160.2,160.08,10.50680472]
[1730652071132,3.1234,160.14,160.1,3.1239]
[1730652072228,5.1521,160.2,160.08,10.50680472]
[1730652072430,1.3721,160.2,160.11,10.50680472]
[1730652072831,3.1231,160.15,160.12,3.1237]
[1730652073132,1.3721,160.2,160.08,10.50680472]
[1730652073434,3.1235,160.14,160.1,3.1239]
[1730652073735,1.3721,160.2,160.08,10.50680472]
[1730652074232,3.1236,160.13,160.1,3.124]
[1730652074424,3.1236,160.13,160.05,10.50680472]
[1730652074425,3.78,160.13,159.99,10.50680472]
[1730652074625,4.0463,160.12,159.99,10.50680472]
[1730652075127,4.0463,160.12,160.02,10.50680472]
[1730652075334,3.124,160.11,160.07,3.1245]
[1730652075535,2.6497,160.12,160.07,3.1245]
[1730652075936,3.1243,160.09,160.05,3.1251]
[1730652076233,2.6497,160.12,159.98,20.58979097]
[1730652076426,3.1247,160.07,160.01,3.1257]
[1730652076638,3.1247,160.07,159.98,20.58979097]
[1730652077124,22.59,160.11,159.97,4.0553]
[1730652077330,1.3583,160.1,159.97,4.0553]
[1730652077531,1.3583,160.1,159.99,3.1261]
[1730652077532,3.1256,160.03,159.99,3.1261]
[1730652077736,3.78,160.06,159.99,3.1261]
[1730652078139,3.1253,160.04,159.99,3.1261]
[1730652078433,3.78,160.06,159.99,3.1261]
[1730652078638,3.1256,160.03,159.99,3.1261]
[1730652079321,3.1256,160.03,159.97,2.7151]
[1730652079322,3.1259,160.01,159.97,4.5468]
[1730652079536,3.1259,160.01,159.97,3.1266]
[1730652079837,3.1259,160.01,159.93,3.78]
[1730652080542,3.1257,160.02,159.98,3.1264]
[1730652080932,3.126,160.01,159.93,3.78]
[1730652081240,3.78,160.06,159.93,3.78]
[1730652081630,1.3583,160.1,159.95,16.80979097]
[1730652081827,3.78,160.09,159.95,16.80979097]
[1730652082343,3.1254,160.04,160.0,3.1259]
[1730652082532,5.1383,160.1,159.96,1.2993]
[1730652083034,3.1248,160.07,160.03,3.1254]
[1730652083644,5.1383,160.1,159.97,2.7134]
[1730652083945,3.1251,160.05,159.97,2.7134]
[1730652084644,3.76,160.05,159.97,1.365]
[1730652085138,3.1256,160.03,159.97,1.365]
[1730652085731,3.1256,160.03,159.99,3.1261]
[1730652085933,3.76,160.05,159.97,1.365]
[1730652086136,3.1259,160.01,159.95,1.3484]
[1730652086541,3.126,160.01,159.95,1.3484]
[1730652086936,1.3857,160.04,159.93,1.3691]
[1730652087141,2.7379,160.03,159.89,2.5947]
[1730652087342,2.7379,160.03,159.96,3.1267]
[1730652087540,3.126,160.01,159.9,1.3691]
[1730652087737,2.7379,160.03,159.9,1.3691]
[1730652088148,3.1261,160.0,159.96,3.1267]
[1730652088328,2.7379,160.03,159.91,16.80979097]
[1730652088945,3.1261,160.0,159.91,16.80979097]
[1730652089132,3.1261,160.0,159.9,1.3691]
[1730652089532,2.7379,160.03,159.96,3.1267]
[1730652089741,3.1262,159.99,159.96,3.1267]
[1730652090338,3.1265,159.98,159.93,3.1272]
[1730652090538,2.7379,160.03,159.9,1.3691]
[1730652091654,3.1261,160.0,159.9,1.3691]
[1730652092037,3.1261,160.0,159.96,3.1267]
[1730652092236,3.1261,160.0,159.9,1.3691]
[1730652092445,2.7379,160.03,159.9,1.3691]
[1730652092635,5.0821,160.03,159.9,1.3691]
[1730652093248,3.1257,160.02,159.99,3.1262]
[1730652093944,5.0821,160.03,159.9,1.3691]
[1730652094652,3.126,160.01,159.97,3.1265]
[1730652094834,5.0821,160.03,159.9,1.3691]
[1730652095841,3.1263,159.99,159.96,3.1267]
[1730652096045,5.0821,160.03,159.96,3.1267]
[1730652096546,3.1262,160.0,159.96,3.1267]
[1730652098436,3.1259,160.01,159.96,3.1267]
[1730652098634,5.0821,160.03,159.93,10.50768854]
[1730652098834,5.0821,160.03,159.97,3.1265]
[1730652099041,3.1261,160.0,159.97,3.1265]
[1730652100055,5.0821,160.03,159.97,3.1265]
[1730652100234,3.1262,160.0,159.97,3.1265]
[1730652103747,5.0821,160.03,159.97,3.1265]
[1730652105242,3.1262,160.0,159.97,3.1265]
[1730652105543,5.0821,160.03,159.9,11.87678854]
[1730652106147,3.1269,159.96,159.9,1.3691]
[1730652107356,3.1269,159.96,159.93,3.1273]
[1730652107750,3.1266,159.98,159.9,1.3691]
[1730652108056,3.1266,159.98,159.9,11.87678854]
[1730652109358,3.1266,159.98,159.95,3.1269]
[1730652110145,1.2825,160.01,159.95,3.1269]
[1730652110466,3.1266,159.97,159.94,3.1271]
[1730652111961,3.76,159.97,159.85,10.50768854]
[1730652112146,2.6686,159.96,159.85,10.50768854]
[1730652112344,2.6686,159.96,159.84,2.7173]
[1730652112653,33.03768854,159.97,159.84,13.22498854]
[1730652112654,3.76,159.97,159.84,13.22498854]
[1730652113058,3.1271,159.95,159.91,3.1277]
[1730652113449,3.1271,159.95,159.84,13.22498854]
[1730652113646,3.76,159.97,159.84,13.22498854]
[1730652114353,3.1269,159.96,159.92,3.1275]
[1730652114755,3.76,159.97,159.92,3.1275]
[1730652114954,3.76,159.97,159.86,3.76]
[1730652115157,3.76,159.97,159.91,3.1278]
[1730652117263,3.1272,159.95,159.91,3.1278]
[1730652120664,3.1277,159.92,159.86,3.76]
[1730652121064,3.1277,159.92,159.89,3.128]
[1730652121258,3.1274,159.93,159.86,3.76]
[1730652121866,3.127,159.96,159.86,3.76]
[1730652122061,3.76,159.97,159.86,3.76]
[1730652122465,3.1271,159.95,159.92,3.1275]
[1730652122763,3.76,159.97,159.86,3.76]
[1730652122961,3.1272,159.94,159.91,3.1276]
[1730652125369,6.94994409,159.97,159.86,3.76]
[1730652125677,17.45763263,159.97,159.84,1.3637]
[1730652126263,10.50768854,159.94,159.79,10.50768854]
[1730652126467,3.9954,159.93,159.79,10.50768854]
[1730652126766,3.76,159.92,159.79,10.50768854]
[1730652126965,3.1287,159.87,159.83,3.1292]
[1730652127563,3.76,159.92,159.82,3.1296]
[1730652127771,3.76,159.92,159.79,10.50768854]
[1730652127772,10.50768854,159.91,159.78,1.3628]
[1730652127958,10.50768854,159.91,159.76,11.88668854]
[1730652128871,3.1292,159.84,159.8,3.1298]
[1730652129072,3.1292,159.84,159.76,11.88668854]
[1730652130469,3.1292,159.84,159.81,3.1298]
[1730652131265,4.4507,159.85,159.81,3.1298]
[1730652131470,1.3217,159.85,159.76,11.88668854]
[1730652132374,3.1293,159.84,159.76,11.88668854]
[1730652133068,11.82938854,159.85,159.7,10.50768854]
[1730652133272,4.45648091,159.84,159.71,1.3348]
[1730652133573,18.77,159.81,159.67,10.50768854]
[1730652133769,3.76,159.8,159.67,10.50768854]
[1730652134178,3.131,159.75,159.71,3.1316]
[1730652135072,10.50768854,159.82,159.67,10.50768854]
[1730652135271,3.76,159.81,159.67,10.50768854]
[1730652136169,3.1305,159.78,159.73,3.1312]
[1730652136684,3.1305,159.78,159.68,3.76]
[1730652136971,3.1305,159.78,159.74,3.1311]
[1730652138175,3.76,159.81,159.73,3.1313]
[1730652138176,3.1307,159.77,159.73,3.1313]
[1730652138569,3.1307,159.77,159.68,3.76]
[1730652138570,3.76,159.81,159.68,3.76]
[1730652139277,3.1309,159.76,159.72,3.1314]
[1730652141569,3.1304,159.78,159.68,3.76]
[1730652141769,3.76,159.81,159.68,3.76]
[1730652142079,3.1306,159.77,159.73,3.1311]
[1730652142377,3.1306,159.77,159.68,3.76]
[1730652143282,3.1306,159.77,159.74,3.1311]
[1730652143778,3.1306,159.77,159.68,3.76]
[1730652144483,3.76,159.81,159.68,3.76]
[1730652144980,3.1303,159.79,159.68,3.76]
[1730652145277,3.76,159.81,159.68,3.76]
[1730652145479,3.1304,159.78,159.74,3.131]
[1730652146769,3.76,159.81,159.74,3.131]
[1730652146975,3.1306,159.77,159.74,3.131]
[1730652147881,3.76,159.81,159.69,1.3525]
[1730652148081,6.113,159.84,159.73,10.50768854]
[1730652148285,66.38838358,159.85,159.74,4.40759658]
[1730652148588,66.38838358,159.85,159.8,3.1298]
[1730652150088,66.38838358,159.85,159.73,14.26768854]
[1730652150089,29.27768854,159.82,159.66,10.50768854]
[1730652150291,29.27768854,159.82,159.67,1.3798]
[1730652150292,1.3978,159.81,159.67,1.3798]
[1730652150591,3.1311,159.75,159.67,1.3798]
[1730652150887,3.76,159.8,159.67,1.3798]
[1730652151083,3.1314,159.73,159.69,3.1321]
[1730652151894,3.1309,159.76,159.68,3.1322]
[1730652152087,10.50768854,159.79,159.68,3.1322]
[1730652152281,10.50768854,159.79,159.67,1.3798]
[1730652152787,29.27768854,159.79,159.68,3.1323]
[1730652153385,3.1317,159.71,159.68,3.1323]
[1730652153876,3.1317,159.71,159.67,1.3798]
[1730652154082,3.1319,159.7,159.67,3.1325]
[1730652154587,3.1319,159.7,159.59,3.134]
[1730652154588,3.76,159.69,159.59,3.134]
[1730652154787,10.50768854,159.67,159.53,13.23388854]
[1730652154987,10.50768854,159.67,159.53,2.7262]
[1730652155295,2.6626,159.66,159.55,3.1349]
[1730652155700,2.6626,159.66,159.53,2.7262]
[1730652155997,3.1342,159.59,159.54,3.135]
[1730652156176,3.76,159.6,159.53,2.7262]
[1730652156377,3.1344,159.58,159.53,5.8613]
[1730652157792,3.76,159.6,159.51,4.5238]
[1730652158287,3.1348,159.56,159.51,4.5238]
[1730652158486,3.76,159.6,159.51,1.3883]
[1730652159089,3.135,159.55,159.5,3.1358]
[1730652159283,3.76,159.54,159.47,3.1363]
[1730652159491,3.76,159.54,159.43,4.0145]
[1730652159693,3.76,159.54,159.44,1.15225556]
[1730652159994,3.1354,159.53,159.48,3.1362]
[1730652160302,3.76,159.54,159.43,4.0145]
[1730652160489,3.1357,159.51,159.43,4.0145]
[1730652161294,3.1359,159.5,159.45,3.1368]
[1730652161781,3.76,159.54,159.45,3.1368]
[1730652161986,3.76,159.54,159.46,3.1366]
[1730652162198,3.76,159.54,159.43,4.0145]
[1730652162598,3.1354,159.53,159.48,3.1361]
[1730652162798,3.76,159.54,159.43,4.0145]
[1730652163098,3.1352,159.54,159.48,3.1361]
[1730652163299,3.9115,159.58,159.43,4.0145]
[1730652163593,3.76,159.57,159.45,3.76]
[1730652163797,3.1351,159.54,159.45,3.76]
[1730652163988,3.76,159.57,159.45,3.76]
[1730652164992,3.76,159.57,159.46,1.15220985]
[1730652165295,3.76,159.57,159.53,3.1351]
[1730652165490,3.76,159.57,159.45,3.76]
[1730652165699,3.1351,159.54,159.5,3.1357]
[1730652167205,3.1353,159.53,159.49,3.136]
[1730652168106,1.3754,159.56,159.43,7.7745]
[1730652168304,1.3754,159.56,159.47,3.1363]
[1730652168305,3.1357,159.51,159.47,3.1363]
[1730652168599,3.76,159.52,159.47,3.1363]
[1730652168793,6.8955,159.52,159.47,3.1363]
[1730652169099,3.76,159.52,159.47,3.1363]
[1730652169304,3.76,159.52,159.43,7.7745]
[1730652169508,3.1358,159.51,159.47,3.1363]
[1730652169900,3.76,159.52,159.43,7.7745]
[1730652170099,6.8955,159.52,159.48,3.1362]
[1730652170299,3.76,159.52,159.43,7.7745]
[1730652170505,3.76,159.52,159.44,1.15249763]
[1730652171310,3.76,159.52,159.49,3.1359]
[1730652172012,6.8955,159.52,159.48,3.1362]
[1730652173303,3.1355,159.52,159.48,3.1362]
[1730652173507,3.76,159.54,159.43,7.7745]
[1730652173719,6.8952,159.54,159.5,3.1358]
[1730652173898,3.76,159.54,159.43,7.7745]
[1730652174103,3.76,159.54,159.44,1.15245025]
[1730652174308,3.76,159.54,159.45,1.15245025]
[1730652174506,3.76,159.54,159.44,1.15245025]
[1730652174707,3.76,159.54,159.45,1.15245025]
[1730652175008,3.76,159.54,159.46,1.15245025]
[1730652175202,3.76,159.54,159.43,7.7745]
[1730652175407,3.1353,159.53,159.49,3.136]
[1730652175613,3.76,159.54,159.38,16.86007819]
[1730652175922,3.76,159.54,159.41,1.3906]
[1730652176105,3.136,159.5,159.42,1.15249417]
[1730652176305,14.30142168,159.54,159.43,1.15249417]
[1730652176513,14.30142168,159.54,159.42,1.15249417]
[1730652176716,14.30142168,159.54,159.41,1.3906]
[1730652176717,3.1358,159.51,159.47,3.1363]
[1730652176919,14.30142168,159.54,159.44,1.15252844]
[1730652177321,14.30142168,159.54,159.45,1.15255496]
[1730652178115,3.136,159.5,159.45,4.28915496]
[1730652178319,3.76,159.52,159.44,1.15252844]
[1730652178515,3.76,159.52,159.45,1.15253744]
[1730652179924,3.76,159.52,159.49,3.1359]
[1730652180419,3.76,159.52,159.45,3.1368]
[1730652180610,3.76,159.52,159.42,10.54142168]
[1730652180809,3.76,159.52,159.43,1.1524694]
[1730652181023,3.76,159.52,159.46,3.1366]
[1730652181213,3.76,159.52,159.42,10.54142168]
[1730652181411,3.76,159.52,159.43,1.15249795]
[1730652181615,3.135,159.55,159.45,10.54142168]
[1730652181815,3.76,159.56,159.46,3.92588278]
[1730652182014,3.76,159.58,159.47,11.69380446]
[1730652182314,3.1345,159.57,159.54,3.135]
[1730652182514,3.76,159.58,159.48,1.4216]
[1730652182715,6.8943,159.58,159.54,3.1349]
[1730652183118,61.39671838,159.61,159.5,14.30142168]
[1730652183311,61.39671838,159.61,159.51,1.15211801]
[1730652183620,3.1337,159.61,159.57,3.1343]
[1730652183827,3.1337,159.61,159.5,14.30142168]
[1730652183828,1.3887,159.65,159.53,10.54142168]
[1730652184031,3.1334,159.63,159.59,3.134]
[1730652184217,3.76,159.64,159.59,3.134]
[1730652184621,6.8932,159.64,159.6,3.1338]
[1730652185223,3.76,159.64,159.54,2.7075]
[1730652185415,10.54142168,159.63,159.54,2.7075]
[1730652185615,10.54142168,159.63,159.5,3.76]
[1730652185917,10.54142168,159.63,159.54,3.135]
[1730652186620,10.54142168,159.63,159.5,3.76]
[1730652187326,10.54142168,159.61,159.5,3.76]
[1730652187518,1.3135,159.6,159.5,3.76]
[1730652187714,3.1346,159.57,159.53,3.1351]
[1730652188022,3.06045277,159.58,159.45,10.54142168]
[1730652188224,4.34945277,159.58,159.45,13.19522168]
[1730652188416,3.1347,159.56,159.52,3.1354]
[1730652188616,1.289,159.58,159.45,13.19522168]
[1730652188815,4.4235,159.58,159.53,3.1351]
[1730652189325,1.289,159.58,159.46,3.76]
[1730652190014,10.54142168,159.55,159.41,11.90132168]
[1730652190214,3.76,159.54,159.41,11.90132168]
[1730652190413,3.76,159.54,159.41,1.3599]
[1730652190623,3.1363,159.48,159.41,1.3599]
[1730652190927,3.76,159.54,159.41,1.3599]
[1730652191219,10.54142168,159.55,159.41,1.3599]
[1730652191419,3.76,159.54,159.41,1.3599]
[1730652191625,3.76,159.54,159.42,1.3252]
[1730652191930,3.76,159.53,159.42,1.3252]
[1730652192220,3.76,159.53,159.42,5.0852]
[1730652192429,1.4035,159.57,159.42,5.0852]
[1730652192726,1.289,159.58,159.44,16.85921665]
[1730652193027,1.289,159.58,159.54,3.1349]
[1730652193613,1.3135,159.6,159.49,2.6674]
[1730652193818,5.0735,159.6,159.55,3.1348]
[1730652194117,3.1342,159.59,159.49,2.6674]
[1730652194316,3.1342,159.59,159.54,3.1349]
[1730652194523,5.0735,159.6,159.54,3.1349]
[1730652194925,3.1343,159.58,159.54,3.1349]
[1730652195327,1.3731,159.61,159.49,5.74473967]
[1730652196033,4.5068,159.61,159.57,3.1343]
[1730652196630,3.1335,159.62,159.58,3.1341]
[1730652198223,3.1339,159.61,159.53,3.1352]
[1730652198423,3.1339,159.61,159.49,5.80238796]
[1730652198825,3.1343,159.58,159.54,3.1349]
[1730652199324,5.0879,159.63,159.49,6.4274]
[1730652199527,5.0879,159.63,159.55,3.1348]
[1730652199528,3.1341,159.59,159.55,3.1348]
[1730652200432,5.0879,159.63,159.55,3.1348]
[1730652200728,5.0879,159.63,159.49,6.4274]
[1730652200729,5.0879,159.63,159.57,3.1344]
[1730652201518,5.0879,159.63,159.49,6.4274]
[1730652201519,5.0879,159.63,159.55,3.1347]
[1730652201832,5.0879,159.63,159.49,6.4274]
[1730652202130,3.134,159.6,159.56,3.1346]
[1730652202527,5.0879,159.63,159.49,6.4274]
[1730652204338,3.1338,159.61,159.57,3.1343]
[1730652205030,5.0879,159.63,159.57,3.1343]
[1730652205331,3.134,159.6,159.57,3.1343]
[1730652207126,3.76,159.63,159.51,16.85921665]
[1730652207333,66.54706127,159.65,159.51,16.85921665]
[1730652207832,5.1675,159.65,159.51,16.85921665]
[1730652208020,3.1336,159.62,159.51,16.85921665]
[1730652209037,3.1336,159.62,159.58,3.1341]
[1730652209936,5.1675,159.65,159.51,16.85921665]
[1730652209937,1.4075,159.65,159.61,3.1336]
[1730652210533,3.1331,159.64,159.61,3.1336]
[1730652211327,1.3,159.68,159.62,3.1334]
[1730652211530,3.76,159.67,159.62,3.1334]
[1730652211734,3.76,159.67,159.56,2.6966]
[1730652211932,3.133,159.65,159.61,3.1336]
[1730652213133,61.35691556,159.71,159.6,3.76]
[1730652213324,3.76,159.74,159.6,3.76]
[1730652213527,3.76,159.74,159.7,3.1319]
[1730652213729,3.76,159.74,159.6,3.76]
[1730652213933,3.1316,159.72,159.6,3.76]
[1730652214133,3.1316,159.72,159.61,10.52953998]
[1730652214644,3.1316,159.72,159.62,1.3575]
[1730652215144,3.1316,159.72,159.63,1.361]
[1730652215453,3.1316,159.72,159.68,3.1323]
[1730652219138,3.76,159.74,159.63,2.7431]
[1730652219338,3.76,159.74,159.66,3.1326]
[1730652219936,3.1321,159.69,159.66,3.1326]
[1730652220138,3.76,159.74,159.63,2.7431]
[1730652220346,3.1319,159.71,159.67,3.1324]
[1730652220533,3.76,159.74,159.67,3.1324]
[1730652222141,3.76,159.74,159.63,1.361]
[1730652222341,14.28953998,159.74,159.64,3.133]
[1730652222543,14.28953998,159.74,159.59,6.4615]
[1730652223145,3.76,159.74,159.6,10.52953998]
[1730652223335,3.1315,159.72,159.69,3.132]
[1730652223939,3.76,159.73,159.6,10.52953998]
[1730652224151,3.1317,159.71,159.68,3.1322]
[1730652224648,3.132,159.7,159.67,3.1324]
[1730652226538,3.1322,159.69,159.66,3.1326]
[1730652227246,3.76,159.73,159.65,3.1328]
[1730652227842,3.1324,159.68,159.65,3.1328]
[1730652228549,3.76,159.73,159.6,10.52953998]